[Event "Titled Tuesday Blitz February 21 Early 2023"]
[White "Balabayeva, Xeniya"]
[Black "Csonka, Balazs"]
[WhiteFideId "13719688"]
[BlackFideId "742910"]
[WhiteElo "2191"]
[BlackElo "2496"]
[Result "0-1"]
[Round "09"]
[TimeControl "180+2"]
[Date "2023.02.21"]
[WhiteClock "0:00:01"]
[BlackClock "0:00:01"]

1. e4 {[%clk 0:03:00]}  e5 {[%clk 0:02:57]} 2. Nf3 {[%clk 0:03:00]}  Nc6 {[%clk 0:02:58]} 3. Bc4 {[%clk 0:02:59]}  Nf6 {[%clk 0:02:45]} 4. Nc3 {[%clk 0:02:57]}  Nxe4 {[%clk 0:02:41]} 5. Bxf7+ {[%clk 0:02:47]}  Kxf7 {[%clk 0:02:42]} 6. Nxe4 {[%clk 0:02:46]}  d5 {[%clk 0:02:35]} 7. Nfg5+ {[%clk 0:02:22]}  Ke8 {[%clk 0:01:40]} 8. Qh5+ {[%clk 0:02:20]}  g6 {[%clk 0:01:32]} 9. Qf3 {[%clk 0:02:19]}  Bf5 {[%clk 0:01:32]} 10. Qb3 {[%clk 0:02:13]}  Bxe4 {[%clk 0:01:04]} 11. Nxe4 {[%clk 0:02:01]}  dxe4 {[%clk 0:01:05]} 12. Qxb7 {[%clk 0:02:00]}  Kd7 {[%clk 0:00:58]} 13. O-O {[%clk 0:01:48]}  Bc5 {[%clk 0:00:48]} 14. Qb5 {[%clk 0:01:43]}  Qe7 {[%clk 0:00:44]} 15. c3 {[%clk 0:01:19]}  Qd6 {[%clk 0:00:26]} 16. Rd1 {[%clk 0:00:35]}  Rhf8 {[%clk 0:00:09]} 17. d4 {[%clk 0:00:35]}  exd4 {[%clk 0:00:08]} 18. cxd4 {[%clk 0:00:34]}  Bxd4 {[%clk 0:00:07]} 19. Be3 {[%clk 0:00:32]}  Rf5 {[%clk 0:00:08]} 20. Qa4 {[%clk 0:00:21]}  Ra5 {[%clk 0:00:07]} 21. Qxa5 {[%clk 0:00:22]}  Nxa5 {[%clk 0:00:07]} 22. Rxd4 {[%clk 0:00:22]}  Qxd4 {[%clk 0:00:06]} 23. Bxd4 {[%clk 0:00:23]}  a6 {[%clk 0:00:06]} 24. Rd1 {[%clk 0:00:22]}  Ke6 {[%clk 0:00:06]} 25. Bc3 {[%clk 0:00:20]}  Nc6 {[%clk 0:00:05]} 26. Kf1 {[%clk 0:00:20]}  a5 {[%clk 0:00:05]} 27. Ke2 {[%clk 0:00:19]}  a4 {[%clk 0:00:05]} 28. Ke3 {[%clk 0:00:19]}  a3 {[%clk 0:00:05]} 29. b3 {[%clk 0:00:17]}  Rf8 {[%clk 0:00:05]} 30. Rd2 {[%clk 0:00:16]}  Ne7 {[%clk 0:00:04]} 31. Kxe4 {[%clk 0:00:12]}  Nf5 {[%clk 0:00:04]} 32. Be5 {[%clk 0:00:09]}  c6 {[%clk 0:00:03]} 33. f4 {[%clk 0:00:09]}  Rb8 {[%clk 0:00:03]} 34. g4 {[%clk 0:00:08]}  Rb4+ {[%clk 0:00:02]} 35. Kf3 {[%clk 0:00:09]}  Nh4+ {[%clk 0:00:01]} 36. Kg3 {[%clk 0:00:08]}  g5 {[%clk 0:00:02]} 37. Rd6+ {[%clk 0:00:08]}  Ke7 {[%clk 0:00:02]} 38. f5 {[%clk 0:00:08]}  Re4 {[%clk 0:00:01]} 39. Re6+ {[%clk 0:00:06]}  Kf7 {[%clk 0:00:01]} 40. h3 {[%clk 0:00:04]}  Re3+ {[%clk 0:00:01]} 41. Kf2 {[%clk 0:00:03]}  Rxh3 {[%clk 0:00:01]} 42. Rh6 {[%clk 0:00:02]}  Rf3+ {[%clk 0:00:01]} 43. Ke2 {[%clk 0:00:02]}  Rh3 {[%clk 0:00:01]} 44. Rxh7+ {[%clk 0:00:02]}  Ke8 {[%clk 0:00:02]} 45. f6 {[%clk 0:00:02]}  Rf3 {[%clk 0:00:01]} 46. Bd6 {[%clk 0:00:02]}  Rxf6 {[%clk 0:00:01]} 47. Be5 {[%clk 0:00:01]}  Re6 {[%clk 0:00:01]} 0-1


[Site "https://www.chess.com"]

[Event "Titled Tuesday Blitz February 21 Early 2023"]
[White "Degenbaev, Aziz"]
[Black "Iskusnyh, Sergei"]
[WhiteFideId "13802640"]
[BlackFideId "4120027"]
[WhiteElo "2203"]
[BlackElo "2440"]
[Result "0-1"]
[Round "09"]
[TimeControl "180+2"]
[Date "2023.02.21"]
[WhiteClock "0:00:07"]
[BlackClock "0:00:15"]

1. e4 {[%clk 0:03:00]}  e6 {[%clk 0:02:57]} 2. d4 {[%clk 0:02:49]}  d5 {[%clk 0:02:56]} 3. Nc3 {[%clk 0:02:50]}  Nf6 {[%clk 0:02:56]} 4. e5 {[%clk 0:02:50]}  Nfd7 {[%clk 0:02:56]} 5. Nce2 {[%clk 0:02:45]}  c5 {[%clk 0:02:52]} 6. c3 {[%clk 0:02:45]}  Nc6 {[%clk 0:02:52]} 7. Nf3 {[%clk 0:02:40]}  Be7 {[%clk 0:02:48]} 8. a3 {[%clk 0:02:32]}  f6 {[%clk 0:02:27]} 9. Nf4 {[%clk 0:02:23]}  Nb6 {[%clk 0:02:14]} 10. Bd3 {[%clk 0:02:11]}  f5 {[%clk 0:02:11]} 11. h4 {[%clk 0:01:43]}  O-O {[%clk 0:01:29]} 12. dxc5 {[%clk 0:00:53]}  Bxc5 {[%clk 0:01:16]} 13. Ng5 {[%clk 0:00:52]}  Qe8 {[%clk 0:01:15]} 14. Qe2 {[%clk 0:00:42]}  Nd7 {[%clk 0:01:08]} 15. Ngxe6 {[%clk 0:00:21]}  Ncxe5 {[%clk 0:00:57]} 16. Nxf8 {[%clk 0:00:19]}  Nxf8 {[%clk 0:00:47]} 17. O-O {[%clk 0:00:18]}  Bd7 {[%clk 0:00:44]} 18. Re1 {[%clk 0:00:18]}  Bd6 {[%clk 0:00:39]} 19. Nxd5 {[%clk 0:00:16]}  Nxd3 {[%clk 0:00:37]} 20. Qxe8 {[%clk 0:00:13]}  Rxe8 {[%clk 0:00:36]} 21. Rxe8 {[%clk 0:00:13]}  Bxe8 {[%clk 0:00:36]} 22. Be3 {[%clk 0:00:13]}  Bc6 {[%clk 0:00:36]} 23. Nb4 {[%clk 0:00:12]}  Nxb2 {[%clk 0:00:34]} 24. Nxc6 {[%clk 0:00:12]}  bxc6 {[%clk 0:00:35]} 25. Bxa7 {[%clk 0:00:12]}  Na4 {[%clk 0:00:35]} 26. Rd1 {[%clk 0:00:11]}  Be7 {[%clk 0:00:33]} 27. Bd4 {[%clk 0:00:08]}  c5 {[%clk 0:00:31]} 28. Be5 {[%clk 0:00:07]}  Kf7 {[%clk 0:00:31]} 29. f4 {[%clk 0:00:03]}  Ng6 {[%clk 0:00:30]} 30. Rd3 {[%clk 0:00:02]}  Nxe5 {[%clk 0:00:29]} 31. fxe5 {[%clk 0:00:03]}  Ke6 {[%clk 0:00:28]} 32. c4 {[%clk 0:00:03]}  Kxe5 {[%clk 0:00:27]} 33. Rd7 {[%clk 0:00:02]}  Ke6 {[%clk 0:00:26]} 34. Rb7 {[%clk 0:00:02]}  Bf6 {[%clk 0:00:25]} 35. g3 {[%clk 0:00:01]}  h6 {[%clk 0:00:24]} 36. Kg2 {[%clk 0:00:02]}  g5 {[%clk 0:00:24]} 37. h5 {[%clk 0:00:02]}  g4 {[%clk 0:00:23]} 38. Kf2 {[%clk 0:00:02]}  Bd4+ {[%clk 0:00:23]} 39. Ke2 {[%clk 0:00:03]}  Kf6 {[%clk 0:00:21]} 40. Ra7 {[%clk 0:00:03]}  Nb2 {[%clk 0:00:21]} 41. Ra6+ {[%clk 0:00:03]}  Kg5 {[%clk 0:00:20]} 42. a4 {[%clk 0:00:03]}  Nxc4 {[%clk 0:00:20]} 43. Kd3 {[%clk 0:00:03]}  Ne5+ {[%clk 0:00:19]} 44. Kc2 {[%clk 0:00:04]}  c4 {[%clk 0:00:19]} 45. a5 {[%clk 0:00:04]}  f4 {[%clk 0:00:18]} 46. gxf4+ {[%clk 0:00:04]}  Kxf4 {[%clk 0:00:18]} 47. Rd6 {[%clk 0:00:03]}  Be3 {[%clk 0:00:16]} 48. a6 {[%clk 0:00:02]}  g3 {[%clk 0:00:16]} 49. Rf6+ {[%clk 0:00:03]}  Kg5 {[%clk 0:00:14]} 50. Re6 {[%clk 0:00:03]}  Kf5 {[%clk 0:00:14]} 51. Re8 {[%clk 0:00:01]}  g2 {[%clk 0:00:14]} 52. Rf8+ {[%clk 0:00:02]}  Ke4 {[%clk 0:00:12]} 53. Rg8 {[%clk 0:00:02]}  Kf3 {[%clk 0:00:13]} 54. Rxg2 {[%clk 0:00:01]}  Kxg2 {[%clk 0:00:12]} 55. a7 {[%clk 0:00:01]}  Bxa7 {[%clk 0:00:12]} 56. Kc3 {[%clk 0:00:02]}  Ng4 {[%clk 0:00:12]} 57. Kb4 {[%clk 0:00:03]}  Kg3 {[%clk 0:00:12]} 58. Kxc4 {[%clk 0:00:03]}  Kh4 {[%clk 0:00:13]} 59. Kb5 {[%clk 0:00:04]}  Kxh5 {[%clk 0:00:14]} 60. Ka6 {[%clk 0:00:05]}  Kg5 {[%clk 0:00:14]} 61. Kb7 {[%clk 0:00:06]}  h5 {[%clk 0:00:14]} 62. Ka8 {[%clk 0:00:07]}  h4 {[%clk 0:00:15]} 0-1


[Site "https://www.chess.com"]

[Event "Titled Tuesday Blitz February 21 Early 2023"]
[White "Martic, Ivan"]
[Black "Shuvalova, Polina"]
[WhiteFideId "929301"]
[BlackFideId "24171760"]
[WhiteElo "2301"]
[BlackElo "2484"]
[Result "1/2-1/2"]
[Round "09"]
[TimeControl "180+2"]
[Date "2023.02.21"]
[WhiteClock "0:00:05"]
[BlackClock "0:00:12"]

1. e4 {[%clk 0:03:00]}  c6 {[%clk 0:02:59]} 2. d3 {[%clk 0:02:58]}  d5 {[%clk 0:02:59]} 3. Nd2 {[%clk 0:02:58]}  g6 {[%clk 0:03:00]} 4. Ngf3 {[%clk 0:02:58]}  Bg7 {[%clk 0:02:59]} 5. g3 {[%clk 0:02:58]}  e5 {[%clk 0:02:58]} 6. Bg2 {[%clk 0:02:58]}  Ne7 {[%clk 0:02:58]} 7. O-O {[%clk 0:02:57]}  O-O {[%clk 0:02:59]} 8. Re1 {[%clk 0:02:56]}  Re8 {[%clk 0:02:48]} 9. b4 {[%clk 0:02:44]}  h6 {[%clk 0:02:35]} 10. Bb2 {[%clk 0:02:36]}  d4 {[%clk 0:02:33]} 11. c3 {[%clk 0:02:33]}  dxc3 {[%clk 0:02:32]} 12. Bxc3 {[%clk 0:02:33]}  Nd7 {[%clk 0:02:15]} 13. Nc4 {[%clk 0:02:28]}  Qc7 {[%clk 0:02:14]} 14. Qc2 {[%clk 0:02:21]}  c5 {[%clk 0:02:05]} 15. b5 {[%clk 0:02:19]}  Kh7 {[%clk 0:01:55]} 16. a4 {[%clk 0:02:05]}  f6 {[%clk 0:01:43]} 17. a5 {[%clk 0:02:00]}  Nf8 {[%clk 0:01:44]} 18. h4 {[%clk 0:01:22]}  h5 {[%clk 0:01:41]} 19. Bd2 {[%clk 0:01:18]}  Bg4 {[%clk 0:01:39]} 20. Nh2 {[%clk 0:01:17]}  Bd7 {[%clk 0:01:36]} 21. b6 {[%clk 0:01:13]}  axb6 {[%clk 0:01:35]} 22. axb6 {[%clk 0:01:13]}  Qc6 {[%clk 0:01:34]} 23. Na5 {[%clk 0:00:59]}  Qc8 {[%clk 0:01:18]} 24. Rec1 {[%clk 0:00:57]}  Ne6 {[%clk 0:01:16]} 25. Nf3 {[%clk 0:00:51]}  Rd8 {[%clk 0:01:04]} 26. Qb3 {[%clk 0:00:44]}  Nc6 {[%clk 0:00:57]} 27. Nc4 {[%clk 0:00:26]}  Ncd4 {[%clk 0:00:57]} 28. Nxd4 {[%clk 0:00:26]}  Nxd4 {[%clk 0:00:57]} 29. Qd1 {[%clk 0:00:26]}  Be6 {[%clk 0:00:49]} 30. Rxa8 {[%clk 0:00:21]}  Qxa8 {[%clk 0:00:50]} 31. Ra1 {[%clk 0:00:22]}  Qc8 {[%clk 0:00:49]} 32. Ra7 {[%clk 0:00:20]}  Nb5 {[%clk 0:00:46]} 33. Ra5 {[%clk 0:00:17]}  Qc6 {[%clk 0:00:44]} 34. Qb1 {[%clk 0:00:08]}  Nd6 {[%clk 0:00:40]} 35. Nxd6 {[%clk 0:00:07]}  Rxd6 {[%clk 0:00:40]} 36. Ra7 {[%clk 0:00:06]}  Qxb6 {[%clk 0:00:37]} 37. Rxb7 {[%clk 0:00:05]}  Qxb1+ {[%clk 0:00:38]} 38. Rxb1 {[%clk 0:00:06]}  Rxd3 {[%clk 0:00:38]} 39. Be3 {[%clk 0:00:07]}  c4 {[%clk 0:00:38]} 40. Bf1 {[%clk 0:00:06]}  Rd7 {[%clk 0:00:38]} 41. Rc1 {[%clk 0:00:06]}  Rc7 {[%clk 0:00:39]} 42. Bd2 {[%clk 0:00:06]}  Bf8 {[%clk 0:00:36]} 43. Be2 {[%clk 0:00:04]}  Bc5 {[%clk 0:00:36]} 44. Kf1 {[%clk 0:00:04]}  Bd4 {[%clk 0:00:36]} 45. Bc3 {[%clk 0:00:04]}  Kg7 {[%clk 0:00:31]} 46. Ke1 {[%clk 0:00:04]}  Kf7 {[%clk 0:00:29]} 47. f3 {[%clk 0:00:04]}  Be3 {[%clk 0:00:26]} 48. Bd2 {[%clk 0:00:04]}  Bd4 {[%clk 0:00:26]} 49. Bc3 {[%clk 0:00:04]}  f5 {[%clk 0:00:24]} 50. exf5 {[%clk 0:00:03]}  gxf5 {[%clk 0:00:25]} 51. f4 {[%clk 0:00:03]}  Bxc3+ {[%clk 0:00:15]} 52. Rxc3 {[%clk 0:00:04]}  exf4 {[%clk 0:00:14]} 53. Bxh5+ {[%clk 0:00:04]}  Kf6 {[%clk 0:00:13]} 54. gxf4 {[%clk 0:00:04]}  Rh7 {[%clk 0:00:13]} 55. Be2 {[%clk 0:00:04]}  Rxh4 {[%clk 0:00:14]} 56. Bxc4 {[%clk 0:00:05]}  Rxf4 {[%clk 0:00:12]} 57. Bxe6 {[%clk 0:00:04]}  Kxe6 {[%clk 0:00:12]} 58. Ke2 {[%clk 0:00:05]}  Kf6 {[%clk 0:00:13]} 59. Ra3 {[%clk 0:00:05]}  Rb4 {[%clk 0:00:13]} 60. Rc3 {[%clk 0:00:05]}  Kg5 {[%clk 0:00:13]} 61. Kf2 {[%clk 0:00:05]}  Kg4 {[%clk 0:00:13]} 62. Ra3 {[%clk 0:00:05]}  f4 {[%clk 0:00:12]} 63. Rc3 {[%clk 0:00:05]}  Rb2+ {[%clk 0:00:12]} 64. Kf1 {[%clk 0:00:05]}  Ra2 {[%clk 0:00:11]} 65. Rb3 {[%clk 0:00:05]}  Rc2 {[%clk 0:00:11]} 66. Ra3 {[%clk 0:00:05]}  Rb2 {[%clk 0:00:11]} 67. Rc3 {[%clk 0:00:05]}  Ra2 {[%clk 0:00:11]} 68. Rb3 {[%clk 0:00:05]}  f3 {[%clk 0:00:12]} 69. Rb8 {[%clk 0:00:05]} 1/2-1/2


[Site "https://www.chess.com"]

[Event "Titled Tuesday Blitz February 21 Early 2023"]
[White "Bon, Michael"]
[Black "Vaibhav Jayant Raut"]
[WhiteFideId "620696"]
[BlackFideId "5089034"]
[WhiteElo "2394"]
[BlackElo "2237"]
[Result "1-0"]
[Round "09"]
[TimeControl "180+2"]
[Date "2023.02.21"]
[WhiteClock "0:00:07"]
[BlackClock "0:00:10"]

1. e4 {[%clk 0:03:00]}  c5 {[%clk 0:02:56]} 2. Nf3 {[%clk 0:03:00]}  Nc6 {[%clk 0:02:52]} 3. d4 {[%clk 0:03:01]}  cxd4 {[%clk 0:02:52]} 4. Nxd4 {[%clk 0:03:02]}  Nf6 {[%clk 0:02:52]} 5. Nc3 {[%clk 0:03:02]}  e5 {[%clk 0:02:51]} 6. Ndb5 {[%clk 0:03:02]}  d6 {[%clk 0:02:52]} 7. Bg5 {[%clk 0:03:02]}  a6 {[%clk 0:02:52]} 8. Na3 {[%clk 0:03:02]}  b5 {[%clk 0:02:52]} 9. Bxf6 {[%clk 0:03:02]}  gxf6 {[%clk 0:02:51]} 10. Nd5 {[%clk 0:03:03]}  Bg7 {[%clk 0:02:51]} 11. c3 {[%clk 0:03:03]}  f5 {[%clk 0:02:50]} 12. exf5 {[%clk 0:03:04]}  Bxf5 {[%clk 0:02:50]} 13. Nc2 {[%clk 0:03:04]}  O-O {[%clk 0:02:49]} 14. Nce3 {[%clk 0:03:05]}  Be6 {[%clk 0:02:50]} 15. Bd3 {[%clk 0:03:05]}  f5 {[%clk 0:02:50]} 16. O-O {[%clk 0:03:06]}  Ne7 {[%clk 0:02:28]} 17. Nxe7+ {[%clk 0:03:04]}  Qxe7 {[%clk 0:02:29]} 18. Bxf5 {[%clk 0:02:54]}  Bxf5 {[%clk 0:02:12]} 19. Nxf5 {[%clk 0:02:53]}  Qe6 {[%clk 0:01:55]} 20. Qd5 {[%clk 0:02:40]}  Qxd5 {[%clk 0:01:52]} 21. Ne7+ {[%clk 0:02:40]}  Kf7 {[%clk 0:01:53]} 22. Nxd5 {[%clk 0:02:40]}  Rac8 {[%clk 0:01:53]} 23. a4 {[%clk 0:02:38]}  Ke6 {[%clk 0:01:51]} 24. Rfd1 {[%clk 0:02:35]}  Rc5 {[%clk 0:01:26]} 25. Nb4 {[%clk 0:02:17]}  bxa4 {[%clk 0:01:13]} 26. Nxa6 {[%clk 0:01:51]}  Ra5 {[%clk 0:01:05]} 27. Nc7+ {[%clk 0:01:45]}  Kd7 {[%clk 0:01:02]} 28. Rd5 {[%clk 0:01:31]}  Rxd5 {[%clk 0:00:55]} 29. Nxd5 {[%clk 0:01:30]}  Rb8 {[%clk 0:00:56]} 30. Rxa4 {[%clk 0:01:24]}  Rxb2 {[%clk 0:00:54]} 31. g3 {[%clk 0:01:23]}  Ke6 {[%clk 0:00:51]} 32. Ne3 {[%clk 0:01:20]}  Bh6 {[%clk 0:00:48]} 33. Rh4 {[%clk 0:00:47]}  Bxe3 {[%clk 0:00:44]} 34. fxe3 {[%clk 0:00:48]}  Re2 {[%clk 0:00:42]} 35. e4 {[%clk 0:00:39]}  h5 {[%clk 0:00:41]} 36. Kf1 {[%clk 0:00:33]}  Re3 {[%clk 0:00:41]} 37. Kf2 {[%clk 0:00:33]}  Rxc3 {[%clk 0:00:41]} 38. Rxh5 {[%clk 0:00:34]}  Rc2+ {[%clk 0:00:38]} 39. Kf3 {[%clk 0:00:33]}  Kd7 {[%clk 0:00:38]} 40. Rh7+ {[%clk 0:00:32]}  Kc6 {[%clk 0:00:39]} 41. h4 {[%clk 0:00:32]}  Rc3+ {[%clk 0:00:36]} 42. Kf2 {[%clk 0:00:29]}  Rc2+ {[%clk 0:00:36]} 43. Kf3 {[%clk 0:00:24]}  Rc3+ {[%clk 0:00:33]} 44. Kg4 {[%clk 0:00:24]}  Re3 {[%clk 0:00:33]} 45. h5 {[%clk 0:00:22]}  Rxe4+ {[%clk 0:00:32]} 46. Kf5 {[%clk 0:00:22]}  Re1 {[%clk 0:00:28]} 47. h6 {[%clk 0:00:22]}  Kd5 {[%clk 0:00:25]} 48. Re7 {[%clk 0:00:18]}  e4 {[%clk 0:00:20]} 49. h7 {[%clk 0:00:17]}  Rh1 {[%clk 0:00:21]} 50. Kg6 {[%clk 0:00:17]}  Kd4 {[%clk 0:00:19]} 51. Kg7 {[%clk 0:00:15]}  Rg1 {[%clk 0:00:17]} 52. h8=Q {[%clk 0:00:12]}  Rxg3+ {[%clk 0:00:17]} 53. Kf6 {[%clk 0:00:11]}  Kd5 {[%clk 0:00:16]} 54. Kf5 {[%clk 0:00:09]}  Rf3+ {[%clk 0:00:16]} 55. Kg4 {[%clk 0:00:10]}  Re3 {[%clk 0:00:16]} 56. Qa8+ {[%clk 0:00:09]}  Kd4 {[%clk 0:00:16]} 57. Qa7+ {[%clk 0:00:09]}  Kd3 {[%clk 0:00:16]} 58. Qa3+ {[%clk 0:00:08]}  Ke2 {[%clk 0:00:12]} 59. Qxd6 {[%clk 0:00:09]}  Kf1 {[%clk 0:00:09]} 60. Qd1+ {[%clk 0:00:08]}  Kg2 {[%clk 0:00:10]} 61. Rf7 {[%clk 0:00:07]}  Rg3+ {[%clk 0:00:09]} 62. Kh5 {[%clk 0:00:07]}  Rh3+ {[%clk 0:00:09]} 63. Kg6 {[%clk 0:00:07]}  Rg3+ {[%clk 0:00:10]} 64. Kf6 {[%clk 0:00:07]}  e3 {[%clk 0:00:11]} 65. Qe2+ {[%clk 0:00:07]}  Kg1 {[%clk 0:00:09]} 66. Rg7 {[%clk 0:00:07]}  Kh1 {[%clk 0:00:08]} 67. Rh7+ {[%clk 0:00:07]}  Kg1 {[%clk 0:00:09]} 68. Qh2+ {[%clk 0:00:07]}  Kf1 {[%clk 0:00:09]} 69. Qxg3 {[%clk 0:00:07]}  Ke2 {[%clk 0:00:10]} 70. Rh2+ {[%clk 0:00:08]}  Kf1 {[%clk 0:00:10]} 71. Qf3+ {[%clk 0:00:07]}  Kg1 {[%clk 0:00:10]} 72. Qg2# {[%clk 0:00:07]} 1-0


[Site "https://www.chess.com"]

[Event "Titled Tuesday Blitz February 21 Early 2023"]
[White "Rosen, Eric"]
[Black "Abdilkhair, Abilmansur"]
[WhiteFideId "2032562"]
[BlackFideId "13716417"]
[WhiteElo "2349"]
[BlackElo "2268"]
[Result "1-0"]
[Round "09"]
[TimeControl "180+2"]
[Date "2023.02.21"]
[WhiteClock "0:00:06"]
[BlackClock "0:00:03"]

1. d4 {[%clk 0:03:00]}  Nf6 {[%clk 0:02:56]} 2. Bf4 {[%clk 0:03:01]}  e6 {[%clk 0:02:56]} 3. e3 {[%clk 0:03:01]}  Be7 {[%clk 0:02:54]} 4. Nf3 {[%clk 0:03:00]}  O-O {[%clk 0:02:54]} 5. Nbd2 {[%clk 0:02:55]}  c5 {[%clk 0:02:54]} 6. c3 {[%clk 0:02:55]}  Nc6 {[%clk 0:02:53]} 7. Bd3 {[%clk 0:02:50]}  Nh5 {[%clk 0:02:45]} 8. Bg3 {[%clk 0:02:47]}  b6 {[%clk 0:02:39]} 9. Ne5 {[%clk 0:02:39]}  Nf6 {[%clk 0:02:37]} 10. Nxc6 {[%clk 0:02:12]}  dxc6 {[%clk 0:02:37]} 11. Qf3 {[%clk 0:01:53]}  Bb7 {[%clk 0:02:29]} 12. Nc4 {[%clk 0:01:46]}  cxd4 {[%clk 0:02:17]} 13. exd4 {[%clk 0:01:44]}  Qd5 {[%clk 0:02:15]} 14. Qe2 {[%clk 0:01:20]}  c5 {[%clk 0:01:50]} 15. Ne3 {[%clk 0:01:20]}  Qh5 {[%clk 0:01:39]} 16. dxc5 {[%clk 0:01:03]}  Bxc5 {[%clk 0:01:32]} 17. f3 {[%clk 0:00:28]}  Rfd8 {[%clk 0:01:14]} 18. Bf2 {[%clk 0:00:28]}  Nd5 {[%clk 0:00:54]} 19. Nxd5 {[%clk 0:00:25]}  Qxd5 {[%clk 0:00:46]} 20. Be4 {[%clk 0:00:14]}  Bxf2+ {[%clk 0:00:43]} 21. Qxf2 {[%clk 0:00:15]}  Qe5 {[%clk 0:00:43]} 22. O-O {[%clk 0:00:13]}  Bxe4 {[%clk 0:00:40]} 23. fxe4 {[%clk 0:00:14]}  Rd7 {[%clk 0:00:39]} 24. Rad1 {[%clk 0:00:11]}  Qc7 {[%clk 0:00:23]} 25. Rd4 {[%clk 0:00:08]}  Rad8 {[%clk 0:00:20]} 26. Rfd1 {[%clk 0:00:06]}  e5 {[%clk 0:00:19]} 27. Rd5 {[%clk 0:00:05]}  f6 {[%clk 0:00:17]} 28. Qd2 {[%clk 0:00:04]}  Rxd5 {[%clk 0:00:16]} 29. exd5 {[%clk 0:00:05]}  Qc5+ {[%clk 0:00:16]} 30. Kh1 {[%clk 0:00:06]}  Rd6 {[%clk 0:00:15]} 31. b3 {[%clk 0:00:06]}  e4 {[%clk 0:00:14]} 32. c4 {[%clk 0:00:06]}  h6 {[%clk 0:00:12]} 33. Re1 {[%clk 0:00:06]}  f5 {[%clk 0:00:12]} 34. h3 {[%clk 0:00:06]}  Rd8 {[%clk 0:00:12]} 35. Qc2 {[%clk 0:00:05]}  Qd4 {[%clk 0:00:12]} 36. Rf1 {[%clk 0:00:04]}  Qe5 {[%clk 0:00:11]} 37. Qf2 {[%clk 0:00:04]}  Rf8 {[%clk 0:00:11]} 38. Qf4 {[%clk 0:00:03]}  Qb2 {[%clk 0:00:08]} 39. Qf2 {[%clk 0:00:03]}  Qc3 {[%clk 0:00:07]} 40. Qe2 {[%clk 0:00:03]}  e3 {[%clk 0:00:07]} 41. Rd1 {[%clk 0:00:03]}  f4 {[%clk 0:00:06]} 42. Kg1 {[%clk 0:00:03]}  Qe5 {[%clk 0:00:05]} 43. Rf1 {[%clk 0:00:03]}  Qg5 {[%clk 0:00:05]} 44. Qf3 {[%clk 0:00:03]}  Qe5 {[%clk 0:00:05]} 45. Re1 {[%clk 0:00:03]}  Re8 {[%clk 0:00:05]} 46. Re2 {[%clk 0:00:04]}  Qa1+ {[%clk 0:00:05]} 47. Kh2 {[%clk 0:00:04]}  Qd4 {[%clk 0:00:06]} 48. Qg4 {[%clk 0:00:03]}  Qe5 {[%clk 0:00:04]} 49. Qf3 {[%clk 0:00:04]}  Qd6 {[%clk 0:00:04]} 50. Re1 {[%clk 0:00:05]}  Qe5 {[%clk 0:00:04]} 51. Qe2 {[%clk 0:00:05]}  Kh8 {[%clk 0:00:04]} 52. Qf3 {[%clk 0:00:05]}  Qd6 {[%clk 0:00:05]} 53. Re2 {[%clk 0:00:06]}  Qe5 {[%clk 0:00:05]} 54. Kg1 {[%clk 0:00:06]}  Qd4 {[%clk 0:00:06]} 55. Kh1 {[%clk 0:00:06]}  Qd1+ {[%clk 0:00:05]} 56. Kh2 {[%clk 0:00:07]}  Qd4 {[%clk 0:00:06]} 57. h4 {[%clk 0:00:05]}  Qe5 {[%clk 0:00:06]} 58. Kh3 {[%clk 0:00:05]}  Qf5+ {[%clk 0:00:06]} 59. g4 {[%clk 0:00:05]}  Qd3 {[%clk 0:00:04]} 60. Kg2 {[%clk 0:00:04]}  Qb1 {[%clk 0:00:01]} 61. Qxf4 {[%clk 0:00:02]}  Qg6 {[%clk 0:00:02]} 62. Qf3 {[%clk 0:00:02]}  Qf6 {[%clk 0:00:01]} 63. Qxf6 {[%clk 0:00:02]}  gxf6 {[%clk 0:00:02]} 64. Kf3 {[%clk 0:00:03]}  Rg8 {[%clk 0:00:02]} 65. Rxe3 {[%clk 0:00:04]}  Rd8 {[%clk 0:00:03]} 66. Re6 {[%clk 0:00:04]}  Kg7 {[%clk 0:00:03]} 67. Re7+ {[%clk 0:00:05]}  Kg6 {[%clk 0:00:03]} 68. Kf4 {[%clk 0:00:05]}  Rd6 {[%clk 0:00:03]} 69. h5# {[%clk 0:00:06]} 1-0


[Site "https://www.chess.com"]

[Event "Titled Tuesday Blitz February 21 Early 2023"]
[White "Karttunen, Mika"]
[Black "Stribuk, Artiom"]
[WhiteFideId "502081"]
[BlackFideId "13515659"]
[WhiteElo "2490"]
[BlackElo "2378"]
[Result "0-1"]
[Round "09"]
[TimeControl "180+2"]
[Date "2023.02.21"]
[WhiteClock "0:01:21"]
[BlackClock "0:01:53"]

1. d4 {[%clk 0:02:59]}  Nf6 {[%clk 0:02:25]} 2. c4 {[%clk 0:02:58]}  c5 {[%clk 0:02:25]} 3. d5 {[%clk 0:02:57]}  b5 {[%clk 0:02:26]} 4. f3 {[%clk 0:02:47]}  bxc4 {[%clk 0:02:15]} 5. e4 {[%clk 0:02:46]}  e6 {[%clk 0:02:16]} 6. Nc3 {[%clk 0:02:39]}  exd5 {[%clk 0:02:15]} 7. e5 {[%clk 0:02:35]}  d4 {[%clk 0:02:15]} 8. exf6 {[%clk 0:02:34]}  d5 {[%clk 0:02:15]} 9. fxg7 {[%clk 0:01:34]}  Bxg7 {[%clk 0:02:13]} 10. Nce2 {[%clk 0:01:34]}  O-O {[%clk 0:02:12]} 11. Ng3 {[%clk 0:01:31]}  Re8+ {[%clk 0:02:06]} 12. Kf2 {[%clk 0:01:31]}  Nc6 {[%clk 0:02:07]} 13. Nh3 {[%clk 0:01:29]}  d3 {[%clk 0:02:04]} 14. Bxd3 {[%clk 0:01:28]}  cxd3 {[%clk 0:01:53]} 15. Qxd3 {[%clk 0:01:27]}  Bd4+ {[%clk 0:01:53]} 16. Kf1 {[%clk 0:01:21]}  Nb4 {[%clk 0:01:53]} 0-1


[Site "https://www.chess.com"]